[Event "*** Titled Tuesday Blitz"]
[Site "Chess.com"]
[Date "2020.11.24"]
[Round "11"]
[White "szachuspl"]
[Black "ZverevLev"]
[Result "1-0"]
[WhiteElo "2509"]
[BlackElo "2317"]
[TimeControl "180+1"]
[EndTime "12:25:19 PST"]
[Termination "szachuspl won by resignation"]

1. d4 {[%clk 0:03:00.9]} 1... Nf6 {[%clk 0:02:58.5]} 2. c4 {[%clk 0:03:01]} 2...
e6 {[%clk 0:02:54.1]} 3. Nf3 {[%clk 0:03:00.7]} 3... d5 {[%clk 0:02:53]} 4. Nc3
{[%clk 0:03:00.6]} 4... dxc4 {[%clk 0:02:47.8]} 5. Bg5 {[%clk 0:02:55.7]} 5...
h6 {[%clk 0:02:44.5]} 6. Bxf6 {[%clk 0:02:55.3]} 6... Qxf6 {[%clk 0:02:45.4]} 7.
e4 {[%clk 0:02:54.5]} 7... a6 {[%clk 0:02:40.4]} 8. a4 {[%clk 0:02:52.9]} 8...
Nc6 {[%clk 0:02:39.4]} 9. Bxc4 {[%clk 0:02:52.3]} 9... Bd7 {[%clk 0:02:36.7]}
10. O-O {[%clk 0:02:52]} 10... O-O-O {[%clk 0:02:35.8]} 11. e5 {[%clk
0:02:49.6]} 11... Qg6 {[%clk 0:02:34.5]} 12. Qe2 {[%clk 0:02:48.1]} 12... Be7
{[%clk 0:02:31.7]} 13. Rfc1 {[%clk 0:02:46.1]} 13... h5 {[%clk 0:02:27]} 14.
Bxa6 {[%clk 0:02:43.6]} 14... Nb8 {[%clk 0:01:48.4]} 15. Bd3 {[%clk 0:02:42.3]}
15... Qh6 {[%clk 0:01:47.7]} 16. Nb5 {[%clk 0:02:42.3]} 16... Bc6 {[%clk
0:01:43.8]} 17. Na7+ {[%clk 0:02:37.6]} 17... Kd7 {[%clk 0:01:43.8]} 18. Nxc6
{[%clk 0:02:38.2]} 18... Nxc6 {[%clk 0:01:44.6]} 19. Bb5 {[%clk 0:02:37.7]}
19... h4 {[%clk 0:01:36.5]} 20. Qe4 {[%clk 0:02:36.5]} 20... Ke8 {[%clk
0:01:34.7]} 21. Bxc6+ {[%clk 0:02:36.4]} 21... bxc6 {[%clk 0:01:33.4]} 22. Rxc6
{[%clk 0:02:35]} 22... Qh5 {[%clk 0:01:27.7]} 23. a5 {[%clk 0:02:33.5]} 23... g5
{[%clk 0:01:27.4]} 24. h3 {[%clk 0:02:32]} 24... Rg8 {[%clk 0:01:25.9]} 25. Nh2
{[%clk 0:02:28.3]} 25... Rd5 {[%clk 0:01:19.3]} 26. a6 {[%clk 0:02:26.8]} 26...
Kd7 {[%clk 0:01:14.7]} 27. Rc3 {[%clk 0:02:24.2]} 27... Ra8 {[%clk 0:01:13.6]}
28. a7 {[%clk 0:02:23.9]} 28... Qh8 {[%clk 0:01:06.3]} 29. Nf3 {[%clk 0:02:20]}
29... Qc8 {[%clk 0:01:03.4]} 30. Qc2 {[%clk 0:02:18.7]} 30... Qb7 {[%clk
0:01:00.5]} 31. Rb3 {[%clk 0:02:18.7]} 31... Rb5 {[%clk 0:01:00.1]} 32. Rxb5
{[%clk 0:02:11.6]} 32... Qxb5 {[%clk 0:00:59.5]} 33. Qa4 {[%clk 0:02:06.7]}
33... Kc6 {[%clk 0:00:54.5]} 34. Rc1+ {[%clk 0:02:03.8]} 34... Kb6 {[%clk
0:00:53.7]} 35. Qxb5+ {[%clk 0:02:04.1]} 35... Kxb5 {[%clk 0:00:54.5]} 36. Rxc7
{[%clk 0:02:04.5]} 36... Bd8 {[%clk 0:00:54.7]} 37. Rb7+ {[%clk 0:02:00.2]}
37... Bb6 {[%clk 0:00:48.1]} 38. Nxg5 {[%clk 0:01:55.6]} 38... Kc6 {[%clk
0:00:41.1]} 39. Rxf7 {[%clk 0:01:53.7]} 39... Bxd4 {[%clk 0:00:41.1]} 40. Nxe6
{[%clk 0:01:51.4]} 40... Bxe5 {[%clk 0:00:39.5]} 41. b4 {[%clk 0:01:46.2]} 41...
Bd6 {[%clk 0:00:35.7]} 42. Nc5 {[%clk 0:01:45.2]} 42... Re8 {[%clk 0:00:33.9]}
43. Kf1 {[%clk 0:01:42.8]} 43... Kb5 {[%clk 0:00:32]} 44. Rb7+ {[%clk
0:01:41.1]} 44... Kc4 {[%clk 0:00:30.8]} 45. Rb8 {[%clk 0:01:33.6]} 45... Rxb8
{[%clk 0:00:24.6]} 46. axb8=Q {[%clk 0:01:33.4]} 46... Bxb8 {[%clk 0:00:25.5]}
47. Ke2 {[%clk 0:01:29.1]} 47... Bd6 {[%clk 0:00:19.9]} 48. Nd3 {[%clk
0:01:28.9]} 48... Kd4 {[%clk 0:00:20]} 49. b5 {[%clk 0:01:28.2]} 49... Bc7
{[%clk 0:00:19.9]} 50. Ne1 {[%clk 0:01:21.6]} 50... Kc4 {[%clk 0:00:19]} 51. Nf3
{[%clk 0:01:21.1]} 51... Bd8 {[%clk 0:00:18.8]} 52. b6 {[%clk 0:01:21.5]} 52...
Bxb6 {[%clk 0:00:17.3]} 53. Nxh4 {[%clk 0:01:21.1]} 53... Kd4 {[%clk 0:00:18.2]}
54. Kf3 {[%clk 0:01:20.3]} 54... Ke5 {[%clk 0:00:19.1]} 55. Ng6+ {[%clk
0:01:19.9]} 55... Kf5 {[%clk 0:00:19]} 56. Nf4 {[%clk 0:01:20.8]} 56... Ba7
{[%clk 0:00:16.2]} 57. Nd5 {[%clk 0:01:21]} 57... Bc5 {[%clk 0:00:15.8]} 58. h4
{[%clk 0:01:21.2]} 58... Ke5 {[%clk 0:00:14]} 59. Ne3 {[%clk 0:01:21.3]} 59...
Be7 {[%clk 0:00:13.4]} 60. g3 {[%clk 0:01:20.9]} 60... Ke6 {[%clk 0:00:11.4]}
61. Ke4 {[%clk 0:01:20.9]} 61... Bd6 {[%clk 0:00:10.9]} 62. f4 {[%clk
0:01:20.4]} 62... Bb4 {[%clk 0:00:09.4]} 63. g4 {[%clk 0:01:20.6]} 63... Be1
{[%clk 0:00:08.1]} 64. h5 {[%clk 0:01:21.1]} 64... Bb4 {[%clk 0:00:04.5]} 65. g5
{[%clk 0:01:21.4]} 65... Be7 {[%clk 0:00:03.3]} 66. f5+ {[%clk 0:01:21]} 66...
Kf7 {[%clk 0:00:01.3]} 67. f6 {[%clk 0:01:20.4]} 67... Bxf6 {[%clk 0:00:01.4]}
68. gxf6 {[%clk 0:01:20.5]} 68... Kxf6 {[%clk 0:00:02.3]} 69. Kf4 {[%clk
0:01:21.4]} 69... Kg7 {[%clk 0:00:02.9]} 70. Kg5 {[%clk 0:01:21.8]} 70... Kh7
{[%clk 0:00:02.9]} 71. h6 {[%clk 0:01:22.4]} 71... Kg8 {[%clk 0:00:03.8]} 72.
Kg6 {[%clk 0:01:23]} 72... Kh8 {[%clk 0:00:04.7]} 73. Ng4 {[%clk 0:01:23]} 73...
Kg8 {[%clk 0:00:05.6]} 74. Ne5 {[%clk 0:01:22]} 74... Kh8 {[%clk 0:00:06.5]} 75.
Nf7+ {[%clk 0:01:21.7]} 75... Kg8 {[%clk 0:00:07.4]} 76. h7+ {[%clk 0:01:22.3]}
76... Kf8 {[%clk 0:00:08.3]} 77. h8=Q+ {[%clk 0:01:22.9]} 1-0

[Event "*** Titled Tuesday Blitz"]
[Site "Chess.com"]
[Date "2020.11.24"]
[Round "11"]
[White "Unknown_IM"]
[Black "shnitez"]
[Result "0-1"]
[WhiteElo "2384"]
[BlackElo "2515"]
[TimeControl "180+1"]
[EndTime "12:25:22 PST"]
[Termination "shnitez won by resignation"]

1. e4 {[%clk 0:03:00.9]} 1... c5 {[%clk 0:02:59.8]} 2. Nf3 {[%clk 0:03:00.2]}
2... e6 {[%clk 0:02:59.6]} 3. c3 {[%clk 0:02:59.5]} 3... Nf6 {[%clk 0:02:58.5]}
4. e5 {[%clk 0:02:59.6]} 4... Nd5 {[%clk 0:02:58.9]} 5. d4 {[%clk 0:03:00.1]}
5... cxd4 {[%clk 0:02:59.8]} 6. cxd4 {[%clk 0:02:59.9]} 6... d6 {[%clk
0:02:58.3]} 7. a3 {[%clk 0:02:59.9]} 7... Nd7 {[%clk 0:02:51.2]} 8. Bd3 {[%clk
0:02:57.8]} 8... b6 {[%clk 0:02:47.6]} 9. O-O {[%clk 0:02:57]} 9... Bb7 {[%clk
0:02:48]} 10. Re1 {[%clk 0:02:55.8]} 10... dxe5 {[%clk 0:02:37.4]} 11. Nxe5
{[%clk 0:02:55.1]} 11... Nxe5 {[%clk 0:02:37.4]} 12. Rxe5 {[%clk 0:02:56]} 12...
Bd6 {[%clk 0:02:36.7]} 13. Re1 {[%clk 0:02:52.5]} 13... Qh4 {[%clk 0:02:34.4]}
14. g3 {[%clk 0:02:41]} 14... Qf6 {[%clk 0:02:24.6]} 15. Be4 {[%clk 0:02:40.7]}
15... O-O {[%clk 0:02:21.6]} 16. Nc3 {[%clk 0:02:34]} 16... Nxc3 {[%clk
0:02:19.9]} 17. bxc3 {[%clk 0:02:33.8]} 17... Bxe4 {[%clk 0:02:20.1]} 18. Rxe4
{[%clk 0:02:34.7]} 18... Rac8 {[%clk 0:02:19.6]} 19. Bd2 {[%clk 0:02:33]} 19...
Rc4 {[%clk 0:02:11.7]} 20. Qe2 {[%clk 0:02:31.6]} 20... Rfc8 {[%clk 0:02:11]}
21. a4 {[%clk 0:02:30]} 21... Qf5 {[%clk 0:02:05]} 22. Kg2 {[%clk 0:01:59.3]}
22... Qd5 {[%clk 0:02:01.7]} 23. Kg1 {[%clk 0:01:58.7]} 23... h6 {[%clk
0:01:49.2]} 24. Rg4 {[%clk 0:01:52.4]} 24... Kf8 {[%clk 0:01:45.4]} 25. Qe4
{[%clk 0:01:42.2]} 25... Qxe4 {[%clk 0:01:36.6]} 26. Rxe4 {[%clk 0:01:41.6]}
26... e5 {[%clk 0:01:26.4]} 27. a5 {[%clk 0:01:32.9]} 27... b5 {[%clk
0:01:19.8]} 28. a6 {[%clk 0:01:14.7]} 28... exd4 {[%clk 0:01:12.7]} 29. cxd4
{[%clk 0:01:09.7]} 29... Ra4 {[%clk 0:00:47.7]} 30. Rxa4 {[%clk 0:00:51.4]}
30... bxa4 {[%clk 0:00:48.6]} 31. d5 {[%clk 0:00:51.6]} 31... a3 {[%clk
0:00:47.6]} 32. Ra4 {[%clk 0:00:50.6]} 32... Bc5 {[%clk 0:00:30.8]} 33. Kg2
{[%clk 0:00:34.1]} 33... Ke7 {[%clk 0:00:27.6]} 34. Bf4 {[%clk 0:00:31.4]} 34...
g5 {[%clk 0:00:24.9]} 35. Be3 {[%clk 0:00:25.8]} 35... Bxe3 {[%clk 0:00:22.1]}
36. fxe3 {[%clk 0:00:26.7]} 36... Rc2+ {[%clk 0:00:22]} 37. Kf3 {[%clk
0:00:23.6]} 37... a2 {[%clk 0:00:22.9]} 38. h4 {[%clk 0:00:22.2]} 38... gxh4
{[%clk 0:00:21.1]} 39. gxh4 {[%clk 0:00:22.2]} 39... Kd6 {[%clk 0:00:19.6]} 40.
Ra5 {[%clk 0:00:14.9]} 40... Kc7 {[%clk 0:00:16.3]} 41. Kg4 {[%clk 0:00:14.1]}
41... Kb6 {[%clk 0:00:16.4]} 42. Ra3 {[%clk 0:00:14.2]} 42... Kb5 {[%clk
0:00:17]} 43. d6 {[%clk 0:00:11.6]} 43... Kc6 {[%clk 0:00:14.2]} 44. Kh5 {[%clk
0:00:10.7]} 44... Kxd6 {[%clk 0:00:14.5]} 45. Kxh6 {[%clk 0:00:11.3]} 45... Kc5
{[%clk 0:00:15.4]} 46. Kg7 {[%clk 0:00:05.8]} 46... Kb4 {[%clk 0:00:15.6]} 47.
Rxa2 {[%clk 0:00:06.2]} 47... Rxa2 {[%clk 0:00:16.2]} 48. h5 {[%clk 0:00:07.1]}
48... Rxa6 {[%clk 0:00:15.7]} 49. Kxf7 {[%clk 0:00:05.3]} 49... Kc4 {[%clk
0:00:15.3]} 50. Kg7 {[%clk 0:00:05.1]} 50... Kd3 {[%clk 0:00:15.5]} 0-1

[Event "*** Titled Tuesday Blitz"]
[Site "Chess.com"]
[Date "2020.11.24"]
[Round "11"]
[White "lucachess49"]
[Black "rududuyk"]
[Result "0-1"]
[WhiteElo "2332"]
[BlackElo "2203"]
[TimeControl "180+1"]
[EndTime "12:25:29 PST"]
[Termination "rududuyk won on time"]

1. d4 {[%clk 0:03:00.9]} 1... e6 {[%clk 0:02:59.5]} 2. c4 {[%clk 0:03:01.4]}
2... f5 {[%clk 0:02:59.6]} 3. Nc3 {[%clk 0:03:01.3]} 3... Nf6 {[%clk 0:03:00.1]}
4. e3 {[%clk 0:02:59.2]} 4... Bb4 {[%clk 0:02:58.3]} 5. Bd3 {[%clk 0:02:57]}
5... O-O {[%clk 0:02:58.2]} 6. Ne2 {[%clk 0:02:56.8]} 6... b6 {[%clk 0:02:57.8]}
7. O-O {[%clk 0:02:55]} 7... Bb7 {[%clk 0:02:56.8]} 8. a3 {[%clk 0:02:54.8]}
8... Bxc3 {[%clk 0:02:55.7]} 9. Nxc3 {[%clk 0:02:55.7]} 9... d6 {[%clk 0:02:52]}
10. f3 {[%clk 0:02:51.6]} 10... Qe8 {[%clk 0:02:47.6]} 11. b4 {[%clk 0:02:47.7]}
11... Qh5 {[%clk 0:02:41.5]} 12. Bb2 {[%clk 0:02:42.3]} 12... Nbd7 {[%clk
0:02:32]} 13. Qc2 {[%clk 0:02:36.3]} 13... Rae8 {[%clk 0:02:20.5]} 14. Nb5
{[%clk 0:02:27.1]} 14... Rc8 {[%clk 0:02:04.4]} 15. Nxa7 {[%clk 0:02:24.3]}
15... Ra8 {[%clk 0:02:04.2]} 16. Nb5 {[%clk 0:02:24.2]} 16... Rac8 {[%clk
0:02:04.7]} 17. a4 {[%clk 0:02:14.1]} 17... Qg5 {[%clk 0:01:59.4]} 18. Qf2
{[%clk 0:01:58]} 18... Nh5 {[%clk 0:01:55.3]} 19. a5 {[%clk 0:01:54.9]} 19... e5
{[%clk 0:01:49.9]} 20. a6 {[%clk 0:01:49.9]} 20... Ba8 {[%clk 0:01:49.5]} 21. d5
{[%clk 0:01:44]} 21... f4 {[%clk 0:01:44.4]} 22. e4 {[%clk 0:01:33.5]} 22... Rf6
{[%clk 0:01:42.7]} 23. Rfe1 {[%clk 0:01:03.2]} 23... Rh6 {[%clk 0:01:30.3]} 24.
Kf1 {[%clk 0:00:50.5]} 24... Ng3+ {[%clk 0:00:56.5]} 25. hxg3 {[%clk 0:00:42.5]}
25... fxg3 {[%clk 0:00:54.8]} 26. Qe3 {[%clk 0:00:39.2]} 26... Qh4 {[%clk
0:00:46.8]} 27. Ke2 {[%clk 0:00:38.4]} 27... Qh2 {[%clk 0:00:45.3]} 28. Rg1
{[%clk 0:00:20.5]} 28... Nf6 {[%clk 0:00:41.1]} 29. Kd2 {[%clk 0:00:17.4]} 29...
Nh5 {[%clk 0:00:40.2]} 30. Kc3 {[%clk 0:00:16.9]} 30... Nf4 {[%clk 0:00:40]} 31.
Qd2 {[%clk 0:00:15.9]} 31... Qh4 {[%clk 0:00:31.5]} 32. Bc2 {[%clk 0:00:13.5]}
32... Qg5 {[%clk 0:00:30.5]} 33. Rad1 {[%clk 0:00:10.3]} 33... Rh2 {[%clk
0:00:30]} 34. Bc1 {[%clk 0:00:10.1]} 34... Qh5 {[%clk 0:00:26.1]} 35. Bd3 {[%clk
0:00:06.9]} 35... g5 {[%clk 0:00:25.1]} 36. Bf1 {[%clk 0:00:06.8]} 36... g4
{[%clk 0:00:19.5]} 37. Qe1 {[%clk 0:00:06.7]} 37... Qh4 {[%clk 0:00:16.4]} 38.
Bxf4 {[%clk 0:00:05.9]} 38... exf4 {[%clk 0:00:15.9]} 39. fxg4 {[%clk
0:00:06.1]} 39... Qf6+ {[%clk 0:00:12.6]} 40. Kb3 {[%clk 0:00:05.8]} 40... Qg6
{[%clk 0:00:07.7]} 41. Qc3 {[%clk 0:00:03.2]} 41... Qxg4 {[%clk 0:00:07]} 42.
Bd3 {[%clk 0:00:03]} 42... Rxg2 {[%clk 0:00:05.3]} 43. Rxg2 {[%clk 0:00:02.2]}
43... Qxd1+ {[%clk 0:00:05.7]} 44. Qc2 {[%clk 0:00:02.7]} 44... Qg4 {[%clk
0:00:04.8]} 45. e5 {[%clk 0:00:03.1]} 45... f3 {[%clk 0:00:04.3]} 46. Bxh7+
{[%clk 0:00:03.1]} 46... Kg7 {[%clk 0:00:04.2]} 47. Bf5 {[%clk 0:00:03.4]} 47...
Qg5 {[%clk 0:00:02.4]} 48. Rxg3 {[%clk 0:00:02.3]} 48... Qxg3 {[%clk 0:00:02.1]}
49. Bxc8 {[%clk 0:00:02.8]} 49... f2+ {[%clk 0:00:02.3]} 0-1

[Event "*** Titled Tuesday Blitz"]
[Site "Chess.com"]
[Date "2020.11.24"]
[Round "11"]
[White "onnoelgersma"]
[Black "Mr_Heisenberg13"]
[Result "1-0"]
[WhiteElo "2434"]
[BlackElo "2518"]
[TimeControl "180+1"]
[EndTime "12:25:30 PST"]
[Termination "onnoelgersma won on time"]

1. d3 {[%clk 0:02:05.6]} 1... Nf6 {[%clk 0:02:57.8]} 2. Nf3 {[%clk 0:02:05.7]}
2... Nc6 {[%clk 0:02:55.8]} 3. d4 {[%clk 0:02:04.1]} 3... d5 {[%clk 0:02:54.6]}
4. Bf4 {[%clk 0:02:03.4]} 4... Bf5 {[%clk 0:02:51.3]} 5. e3 {[%clk 0:02:03.4]}
5... e6 {[%clk 0:02:50.8]} 6. Bd3 {[%clk 0:01:58.6]} 6... Bxd3 {[%clk 0:02:44]}
7. cxd3 {[%clk 0:01:59.5]} 7... Bd6 {[%clk 0:02:43.7]} 8. Ne5 {[%clk 0:01:59.3]}
8... Bxe5 {[%clk 0:02:38.2]} 9. dxe5 {[%clk 0:02:00.2]} 9... Nd7 {[%clk
0:02:38.6]} 10. d4 {[%clk 0:02:00.4]} 10... O-O {[%clk 0:02:36.3]} 11. Nc3
{[%clk 0:01:59.6]} 11... Na5 {[%clk 0:02:30.5]} 12. O-O {[%clk 0:01:59.2]} 12...
Nc4 {[%clk 0:02:22.9]} 13. b3 {[%clk 0:01:59.1]} 13... Ncb6 {[%clk 0:02:23.1]}
14. Rc1 {[%clk 0:01:58.8]} 14... Rc8 {[%clk 0:02:20.5]} 15. Nb5 {[%clk
0:01:58.6]} 15... a6 {[%clk 0:02:20]} 16. Nc3 {[%clk 0:01:55.7]} 16... c5 {[%clk
0:02:18.5]} 17. Qg4 {[%clk 0:01:55.7]} 17... Kh8 {[%clk 0:02:17.3]} 18. h4
{[%clk 0:01:54.6]} 18... cxd4 {[%clk 0:02:15.5]} 19. exd4 {[%clk 0:01:54.3]}
19... Qe7 {[%clk 0:02:13]} 20. h5 {[%clk 0:01:46.7]} 20... h6 {[%clk 0:02:12.7]}
21. Bd2 {[%clk 0:01:44.4]} 21... Rc6 {[%clk 0:02:00.1]} 22. f4 {[%clk
0:01:30.6]} 22... f5 {[%clk 0:01:59.5]} 23. Qe2 {[%clk 0:01:23]} 23... Na8
{[%clk 0:01:54.1]} 24. g4 {[%clk 0:01:10.6]} 24... fxg4 {[%clk 0:01:51.9]} 25.
Qxg4 {[%clk 0:01:11.5]} 25... Rf5 {[%clk 0:01:51.7]} 26. Kg2 {[%clk 0:01:10.1]}
26... Nc7 {[%clk 0:01:50.3]} 27. Ne2 {[%clk 0:01:07.6]} 27... Qa3 {[%clk
0:01:36.1]} 28. Rxc6 {[%clk 0:01:01.4]} 28... bxc6 {[%clk 0:01:35.4]} 29. Ng3
{[%clk 0:01:01.9]} 29... Rf7 {[%clk 0:01:27.9]} 30. f5 {[%clk 0:01:00.8]} 30...
Qxa2 {[%clk 0:01:13.5]} 31. Rf2 {[%clk 0:00:57.9]} 31... exf5 {[%clk 0:01:13.2]}
32. Nxf5 {[%clk 0:00:55.7]} 32... Qb1 {[%clk 0:01:10.6]} 33. Qg6 {[%clk
0:00:45.3]} 33... Qe4+ {[%clk 0:01:00.8]} 34. Kg3 {[%clk 0:00:35.3]} 34... Nxe5
{[%clk 0:00:50.6]} 35. dxe5 {[%clk 0:00:27.4]} 35... Qxe5+ {[%clk 0:00:50.7]}
36. Rf4 {[%clk 0:00:27.9]} 36... Rf8 {[%clk 0:00:40.6]} 37. Nxh6 {[%clk
0:00:14]} 37... Rxf4 {[%clk 0:00:32.6]} 38. Bxf4 {[%clk 0:00:13.5]} 38... Qe1+
{[%clk 0:00:31.6]} 39. Kf3 {[%clk 0:00:11.2]} 39... Qf1+ {[%clk 0:00:25.2]} 40.
Ke3 {[%clk 0:00:06.5]} 40... Qe1+ {[%clk 0:00:25.1]} 41. Kf3 {[%clk 0:00:03.5]}
41... Qf1+ {[%clk 0:00:20.4]} 42. Kg4 {[%clk 0:00:03.7]} 42... Qe2+ {[%clk
0:00:16.9]} 43. Kf5 {[%clk 0:00:04.2]} 43... Qd3+ {[%clk 0:00:16.7]} 44. Kg4
{[%clk 0:00:02.4]} 44... Qe2+ {[%clk 0:00:10.1]} 45. Kh4 {[%clk 0:00:01.8]}
45... Qf2+ {[%clk 0:00:07.5]} 46. Bg3 {[%clk 0:00:02.4]} 46... Qd4+ {[%clk
0:00:07.4]} 47. Kh3 {[%clk 0:00:03]} 47... Nb5 {[%clk 0:00:03.6]} 48. Nf7+
{[%clk 0:00:02.9]} 48... Kg8 {[%clk 0:00:03.6]} 49. Ng5 {[%clk 0:00:03.4]} 1-0

[Event "*** Titled Tuesday Blitz"]
[Site "Chess.com"]
[Date "2020.11.24"]
[Round "11"]
[White "sergeikim"]
[Black "Nemsko"]
[Result "0-1"]
[WhiteElo "2501"]
[BlackElo "2375"]
[TimeControl "180+1"]
[EndTime "12:25:38 PST"]
[Termination "Nemsko won by resignation"]

1. d4 {[%clk 0:03:00.9]} 1... Nf6 {[%clk 0:02:59.6]} 2. c4 {[%clk 0:03:00.7]}
2... e6 {[%clk 0:02:57.1]} 3. Nc3 {[%clk 0:03:00.4]} 3... Bb4 {[%clk 0:02:53]}
4. Qc2 {[%clk 0:03:00.3]} 4... d5 {[%clk 0:02:51.8]} 5. a3 {[%clk 0:03:00.2]}
5... Bxc3+ {[%clk 0:02:50.5]} 6. Qxc3 {[%clk 0:03:00.4]} 6... O-O {[%clk
0:02:49.8]} 7. Nf3 {[%clk 0:02:59.7]} 7... b6 {[%clk 0:02:49]} 8. g3 {[%clk
0:02:58.8]} 8... Bb7 {[%clk 0:02:48.9]} 9. Bg2 {[%clk 0:02:58.5]} 9... Nbd7
{[%clk 0:02:49.6]} 10. O-O {[%clk 0:02:58.2]} 10... Rc8 {[%clk 0:02:49.7]} 11.
cxd5 {[%clk 0:02:53.7]} 11... exd5 {[%clk 0:02:48.9]} 12. Rd1 {[%clk 0:02:47.9]}
12... Re8 {[%clk 0:02:47.1]} 13. Ne5 {[%clk 0:02:43.6]} 13... c6 {[%clk
0:02:42.7]} 14. Bg5 {[%clk 0:02:30.9]} 14... h6 {[%clk 0:02:40.3]} 15. Bf4
{[%clk 0:02:22.1]} 15... Nxe5 {[%clk 0:02:02.5]} 16. Bxe5 {[%clk 0:02:16.8]}
16... Qe7 {[%clk 0:01:45.8]} 17. Bxf6 {[%clk 0:02:04.8]} 17... Qxf6 {[%clk
0:01:45.1]} 18. e3 {[%clk 0:02:04]} 18... Red8 {[%clk 0:01:40]} 19. Rac1 {[%clk
0:02:02.3]} 19... Qe6 {[%clk 0:01:31.1]} 20. b4 {[%clk 0:01:59.4]} 20... a6
{[%clk 0:01:30]} 21. a4 {[%clk 0:01:58]} 21... h5 {[%clk 0:01:11.2]} 22. h4
{[%clk 0:01:56.6]} 22... g6 {[%clk 0:01:10.5]} 23. a5 {[%clk 0:01:55.8]} 23...
b5 {[%clk 0:01:02.6]} 24. Qc5 {[%clk 0:01:55]} 24... Qd6 {[%clk 0:00:59.2]} 25.
Bh3 {[%clk 0:01:48.8]} 25... Rc7 {[%clk 0:00:58.5]} 26. Qxd6 {[%clk 0:01:41.8]}
26... Rxd6 {[%clk 0:00:59.4]} 27. Rc5 {[%clk 0:01:41.3]} 27... Bc8 {[%clk
0:00:57.6]} 28. Bg2 {[%clk 0:01:39.2]} 28... Bf5 {[%clk 0:00:54.6]} 29. Rdc1
{[%clk 0:01:37.1]} 29... Be6 {[%clk 0:00:38.1]} 30. f3 {[%clk 0:01:33.3]} 30...
f5 {[%clk 0:00:36.5]} 31. Kf2 {[%clk 0:01:30.8]} 31... Kf7 {[%clk 0:00:36]} 32.
Bf1 {[%clk 0:01:30.5]} 32... Ke7 {[%clk 0:00:26.9]} 33. Bd3 {[%clk 0:01:29.8]}
33... Kd7 {[%clk 0:00:25.2]} 34. Ke2 {[%clk 0:01:27.3]} 34... Bf7 {[%clk
0:00:24.9]} 35. Kd2 {[%clk 0:01:26.4]} 35... Re6 {[%clk 0:00:24.5]} 36. Re1
{[%clk 0:01:25.8]} 36... Rc8 {[%clk 0:00:23.9]} 37. e4 {[%clk 0:01:23.1]} 37...
fxe4 {[%clk 0:00:20.6]} 38. fxe4 {[%clk 0:01:23.2]} 38... dxe4 {[%clk
0:00:20.3]} 39. Rxe4 {[%clk 0:01:21]} 39... Rce8 {[%clk 0:00:19.2]} 40. Rxe6
{[%clk 0:01:17.7]} 40... Rxe6 {[%clk 0:00:20.1]} 41. Be2 {[%clk 0:01:09.2]}
41... Rd6 {[%clk 0:00:20]} 42. Kc3 {[%clk 0:01:06.3]} 42... Bd5 {[%clk
0:00:19.8]} 43. Bd3 {[%clk 0:01:04.5]} 43... Rf6 {[%clk 0:00:20]} 44. Kd2 {[%clk
0:01:00.5]} 44... Kd6 {[%clk 0:00:18.9]} 45. Rc3 {[%clk 0:00:57.8]} 45... Rf2+
{[%clk 0:00:19]} 46. Kc1 {[%clk 0:00:44.5]} 46... Rf3 {[%clk 0:00:18.4]} 47. Kd2
{[%clk 0:00:44.2]} 47... Rxg3 {[%clk 0:00:18.3]} 48. Rc1 {[%clk 0:00:41.5]}
48... Rg2+ {[%clk 0:00:17.8]} 49. Ke3 {[%clk 0:00:40.7]} 49... Rg3+ {[%clk
0:00:17.1]} 50. Kd2 {[%clk 0:00:36.7]} 50... Rg4 {[%clk 0:00:17.4]} 51. Ke3
{[%clk 0:00:34]} 51... Rxh4 {[%clk 0:00:11.4]} 52. Bxg6 {[%clk 0:00:33.3]} 52...
Rh3+ {[%clk 0:00:12.1]} 53. Kf4 {[%clk 0:00:32.4]} 53... h4 {[%clk 0:00:08.2]}
54. Rg1 {[%clk 0:00:29.3]} 54... Rf3+ {[%clk 0:00:06.1]} 55. Kg4 {[%clk
0:00:26.9]} 55... h3 {[%clk 0:00:06.4]} 56. Rh1 {[%clk 0:00:18.1]} 56... Rf6
{[%clk 0:00:06.5]} 57. Rxh3 {[%clk 0:00:16.9]} 57... Rxg6+ {[%clk 0:00:07]} 58.
Kf5 {[%clk 0:00:16.6]} 58... Be6+ {[%clk 0:00:06.6]} 59. Kxg6 {[%clk 0:00:16]}
59... Bxh3 {[%clk 0:00:07.5]} 60. Kf6 {[%clk 0:00:16.4]} 60... Kd5 {[%clk
0:00:08.2]} 0-1